Cogmind - Beta 13 @@@ ROGUE MODE // 2024.03.08 @ 16:52:10 // Winter2022/Polymind Player: Ferns Result: Destroyed by S-10 Pest with Light Assault Rifle Performance ------------- Evolutions (2) 1000 Regions Visited (7) 1400 Robots Destroyed (21) 105 Value Destroyed (460) 460 Prototype IDs (23) 460 Alien Tech Used (0) 0 Bonus (4497) 4497 TOTAL SCORE: 7642 Bonus ------- Polymind Skill 4137 Follower Combat Kills 60 Aligned with FarCom 300 Cogmind --------- Core Integrity 0/550 Matter 0/0 Energy 53/100 System Corruption 0% Temperature Cool (0) Movement Core (50) Location -8/Materials Parts ------- > --- POWER (1) -------- (None) > --- PROPULSION (2) --- (None) > --- UTILITY (0) ------ (None) > --- WEAPON (1) ------- (None) > --- INVENTORY (0) ---- (None) Peak State ------------ > --- POWER ------------ Improved Ion Engine > --- PROPULSION ------- Light Treads Light Treads > --- UTILITY ---------- Heat Sink Heat Sink Light Armor Plating > --- WEAPON ----------- Beam Rifle Heavy Assault Rifle > --- INVENTORY -------- (None) [Rating: 11] Favorites ----------- Power Improved Ion Engine Engine Improved Ion Engine Propulsion Light Treads Treads Light Treads Wheel Wheel Hover Unit Hover Unit Flight Unit Flight Unit Utility Heat Sink Device Heat Sink Storage Medium Matter Pod Processor Terrain Scan Processor Protection Light Armor Plating Weapon Heavy Assault Rifle Energy Gun Beam Rifle Ballistic Gun Heavy Assault Rifle Special Weapon Mining Laser Build | -11 -10 -10 -9 -9 -9 -8 -8 ------- Run | Yrd Mat Min Mat Min Exi Min Mat Slots Evolved . | . . . . . . . . Power . | . . . . . . . . Propulsion . | . . . . . . . . Utility . | . . . . . . . . Weapon . | . . . . . . . . Parts Attached . | . . . . . . . . Power . | . . . . . . . . Engine . | . . . . . . . . Core . | . . . . . . . . Reactor . | . . . . . . . . Propulsion . | . . . . . . . . Treads . | . . . . . . . . Leg . | . . . . . . . . Wheel . | . . . . . . . . Hover . | . . . . . . . . Flight . | . . . . . . . . Utility . | . . . . . . . . Device . | . . . . . . . . Storage . | . . . . . . . . Processor . | . . . . . . . . Hackware . | . . . . . . . . Protection . | . . . . . . . . Artifact . | . . . . . . . . Weapon . | . . . . . . . . Energy Gun . | . . . . . . . . Energy Cannon . | . . . . . . . . Ballistic Gun . | . . . . . . . . Ballistic Cannon . | . . . . . . . . Launcher . | . . . . . . . . Special Weapon . | . . . . . . . . Impact Weapon . | . . . . . . . . Slashing Weapon . | . . . . . . . . Piercing Weapon . | . . . . . . . . Special Melee Weapon . | . . . . . . . . Unidentified Prototypes . | . . . . . . . . Parts Lost 17 | . . 1 . . . 8 8 Power 3 | . . . . . . 1 2 Propulsion 6 | . . . . . . 2 4 Utility 3 | . . . . . . 3 . Weapon 5 | . . 1 . . . 2 2 Highest Loss Streak 8 | . . 1 . . . 8 7 To Critical Strikes . | . . . . . . . . Average Slot Usage (%) 93 | . 100 86 98 100 100 89 80 Engine 13 | . 20 16 12 12 12 11 12 Treads 15 | . . . 21 25 25 18 . Wheel 10 | . 40 22 3 . . 5 23 Hover 1 | . . 6 . . . . . Flight 1 | . . 4 . . . . 5 Device 22 | . 20 13 24 25 25 23 24 Storage 2 | . 20 5 . . . . . Processor 2 | . . 11 1 . . . . Protection 7 | . . . 10 12 12 8 . Energy Gun 7 | . . . 10 12 12 8 . Ballistic Gun 8 | . . 2 10 12 12 8 5 Special Weapon 2 | . . 4 1 . . 2 7 Naked Turns 65 | . . 28 8 . . 19 10 Heaviest Build 18 | 9 9 6 18 18 18 18 6 Greatest Support 40 | 32 32 20 40 40 40 40 20 Greatest Overweight (x) . | . . . . . . . . Average Overweight (x) . | . . . . . . . . Largest Inventory Capacity 4 | 4 4 1 1 1 1 1 . Average Capacity . | 3 3 . . 1 1 . . Most Carried 4 | 4 4 . . . 1 1 . Average Carried . | 2 3 . . . . . . Final Capacity 4 | 4 . . 1 1 1 . . Final Carried 4 | 4 . . . . 1 . . Class Distribution -------------------- 60% | Sentry 11% | Tunneler 8% | Builder 5% | Worker 4% | Recycler 3% | Swarmer 3% | Watcher Dominant Class ---------------- Recycler | -10/Materials Builder | -10/Mines Sentry | -9/Materials Sentry | -9/Mines Sentry | -9/Exiles Sentry | -8/Mines Tunneler | -8/Materials Resources | -11 -10 -10 -9 -9 -9 -8 -8 ----------- Run | Yrd Mat Min Mat Min Exi Min Mat Matter Collected 324 | . . 109 21 . . 194 . Remotely . | . . . . . . . . Salvage Created 537 | . . 74 190 . . 254 19 Parts 35 | . . 5 10 . . 14 6 Haulers Intercepted . | . . . . . . . . Recyclers Shooed . | . . . . . . . . Parts Field Recycled . | . . . . . . . . Retrieved Matter . | . . . . . . . . Parts Self-Destructed . | . . . . . . . . Prevented . | . . . . . . . . Kills | -11 -10 -10 -9 -9 -9 -8 -8 ------- Run | Yrd Mat Min Mat Min Exi Min Mat Combat Hostiles Destroyed 20 | . . 4 3 . . 10 3 Melee 1 | . . . . . . 1 . Guns 19 | . . 4 3 . . 9 3 Classes Destroyed 4 | . . 1 3 . . . . Watcher 1 | . . . 1 . . . . Swarmer 13 | . . 4 . . . 8 1 Grunt 6 | . . . 2 . . 2 2 Sentry 1 | . . . 1 . . . . Best Kill Streak 4 | . . 2 2 . . 4 2 Combat Bots Only 4 | . . 2 2 . . 4 2 Max Kills in Single Turn 2 | . . 1 1 . . 2 1 Gunslinging 1 | . . . . . . 1 . Exploded . | . . . . . . . . Melee 1 | . . . . . . 1 . Uniques/NPCs Destroyed . | . . . . . . . . Combat | -11 -10 -10 -9 -9 -9 -8 -8 -------- Run | Yrd Mat Min Mat Min Exi Min Mat Hostile Shots Fired 237 | . 1 49 18 . . 75 94 Missed 61 | . . 22 3 . . 15 21 Damage Taken 2460 | . 17 395 192 . . 918 938 Core 1124 | . . 233 61 . . 279 551 Absorbed by Shields . | . . . . . . . . Core Remaining (%) 40 | 100 . 6 . . . 15 . Volleys Fired 87 | . . 14 7 . . 29 37 Largest 2 | . . 1 2 . . 2 1 Hottest 100 | . . 20 79 . . 79 100 Shots Fired 115 | . . 14 14 . . 50 37 Gun 114 | . . 14 14 . . 50 36 Cannon . | . . . . . . . . Launcher . | . . . . . . . . Special 1 | . . . . . . . 1 Kinetic 86 | . . 14 7 . . 29 36 Thermal 29 | . . . 7 . . 21 1 Explosive . | . . . . . . . . Electromagnetic . | . . . . . . . . Robot Hit Streak 15 | . . 7 9 . . 6 15 Robot Miss Streak 3 | . . 2 1 . . 3 1 Penetration Max . | . . . . . . . . Secondary Targets 1 | . . . . . . 1 . Max Gunslinging Chain 1 | . . . . . . 1 . Shots Hit Robots 81 | . . 10 11 . . 29 31 Core Hits 45 | . . 6 6 . . 20 13 Critical Kills 1 | . . . . . . . 1 Critical Parts Destroyed 1 | . . . . . . . 1 Critical Strikes 3 | . . . . . . 1 2 Burn 1 | . . . . . . 1 . Destroy 2 | . . . . . . . 2 Melee Attacks . | . . . . . . . . Impact . | . . . . . . . . Slashing . | . . . . . . . . Piercing . | . . . . . . . . Sneak Attacks . | . . . . . . . . Combat Hostiles . | . . . . . . . . Follow-up Attacks . | . . . . . . . . Damage Inflicted 1003 | . . 95 171 . . 477 260 Guns 945 | . . 90 171 . . 450 234 Cannons . | . . . . . . . . Explosions . | . . . . . . . . Melee . | . . . . . . . . Ramming 58 | . . 5 . . . 27 26 Kinetic 659 | . . 90 81 . . 254 234 Thermal 286 | . . . 90 . . 196 . Explosive . | . . . . . . . . Electromagnetic . | . . . . . . . . Impact . | . . . . . . . . Slashing . | . . . . . . . . Piercing . | . . . . . . . . Highest Corruption . | . . . . . . . . Average Corruption . | . . . . . . . . Corruption Purged . | . . . . . . . . Corruption Blocked . | . . . . . . . . Overload Shots . | . . . . . . . . Overflow Damage . | . . . . . . . . Projectiles . | . . . . . . . . Explosions . | . . . . . . . . Melee . | . . . . . . . . Knockbacks . | . . . . . . . . Impact . | . . . . . . . . Kinetic . | . . . . . . . . Secondary . | . . . . . . . . Self-Inflicted Damage 23 | . . 2 . . . 9 12 Shots . | . . . . . . . . Rammed 21 | . . 1 . . . 12 8 Targets Rammed 22 | . . 1 . . . 13 8 Kicked . | . . . . . . . . Crushed 1 | . . . . . . 1 . Highest Temperature 107 | . . 48 48 . . 60 107 Average Temperature 28 | . . 21 24 . . 36 30 Received Heat Transfer 810 | . 9 . 99 . . 396 306 Siege Activations . | . . . . . . . . Robots Corrupted . | . . . . . . . . Combat Hostiles . | . . . . . . . . Parts Fried . | . . . . . . . . Impact Corruptions . | . . . . . . . . Robots Melted . | . . . . . . . . Combat Hostiles . | . . . . . . . . Parts Melted 1 | . . . . . . 1 . Heat Transferred 777 | . . . 222 . . 555 . Parts Sabotaged . | . . . . . . . . Parts Stolen . | . . . . . . . . Parts Stripped . | . . . . . . . . Power Chain Reactions . | . . . . . . . . Alert | -11 -10 -10 -9 -9 -9 -8 -8 ------- Run | Yrd Mat Min Mat Min Exi Min Mat Peak Influence 206 | . 15 206 187 . . 205 113 Initial 5 | . . 5 . . . . 3 Average 68 | . . 89 50 . . 116 72 Maximum Alert Level 1 | . . 1 . . . 1 . Low Security (%) 99 | 100 100 98 100 100 . 99 100 Level 1 . | . . 1 . . . . . Level 2 . | . . . . . . . . Level 3 . | . . . . . . . . Level 4 . | . . . . . . . . Level 5 . | . . . . . . . . High Security . | . . . . . . . . Max Security . | . . . . . . . . Squads Dispatched . | . . . . . . . . Investigation . | . . . . . . . . Extermination . | . . . . . . . . Reinforcement . | . . . . . . . . Assault . | . . . . . . . . Garrison . | . . . . . . . . Intercept . | . . . . . . . . Searches Triggered . | . . . . . . . . Construction Impeded . | . . . . . . . . Haulers Reinforced . | . . . . . . . . Active Scanning Responses . | . . . . . . . . Cargo Convoy Interrupts . | . . . . . . . . Stealth | -11 -10 -10 -9 -9 -9 -8 -8 --------- Run | Yrd Mat Min Mat Min Exi Min Mat Distress Signals 3 | . . 1 2 . . . . Communications Jammed . | . . . . . . . . Distress Signals . | . . . . . . . . Times Spotted 68 | . 2 30 10 . . 9 17 Peak Tracking Total 20 | . 2 20 6 . . 4 8 Tactical Retreats 4 | . . 3 . . . . 1 Traps | -11 -10 -10 -9 -9 -9 -8 -8 ------- Run | Yrd Mat Min Mat Min Exi Min Mat Traps Triggered . | . . . . . . . . Indirectly . | . . . . . . . . Trap Hack Attempts . | . . . . . . . . Triggered . | . . . . . . . . Disarmed . | . . . . . . . . Reprogrammed . | . . . . . . . . Reused . | . . . . . . . . Traps Extracted . | . . . . . . . . Installed . | . . . . . . . . Triggered . | . . . . . . . . Machines | -11 -10 -10 -9 -9 -9 -8 -8 ---------- Run | Yrd Mat Min Mat Min Exi Min Mat Machines Disabled . | . . . . . . . . Max in Single Turn . | . . . . . . . . Machines Repaired . | . . . . . . . . Machines Dismantled . | . . . . . . . . Machines Sabotaged . | . . . . . . . . Overloaded Fab Kills . | . . . . . . . . Hacking | -11 -10 -10 -9 -9 -9 -8 -8 --------- Run | Yrd Mat Min Mat Min Exi Min Mat Machines Accessed 3 | . 1 . 1 . 1 . . Terminals 2 | . 1 . 1 . . . . Fabricators . | . . . . . . . . Repair Stations . | . . . . . . . . Recycling Units . | . . . . . . . . Scanalyzers . | . . . . . . . . Garrison Access . | . . . . . . . . Total Hacks 4 | . 2 . 1 . 1 . . Successful 2 | . . . 1 . 1 . . Failed 2 | . 2 . . . . . . Catastrophic 2 | . 2 . . . . . . Database Lockouts . | . . . . . . . . Manual 1 | . . . . . 1 . . Terminals 3 | . 2 . 1 . . . . Fabricators . | . . . . . . . . Repair Stations . | . . . . . . . . Recycling Units . | . . . . . . . . Scanalyzers . | . . . . . . . . Garrison Access . | . . . . . . . . Terminal Hacks 2 | . . . 1 . 1 . . Assault Status 1 | . . . 1 . . . . Derelict Proto ID Bank 1 | . . . . . 1 . . Fabricator Hacks . | . . . . . . . . Repair Station Hacks . | . . . . . . . . Recycling Unit Hacks . | . . . . . . . . Scanalyzer . | . . . . . . . . Garrison Access Hacks . | . . . . . . . . Unauthorized Hacks . | . . . . . . . . Terminals . | . . . . . . . . Fabricators . | . . . . . . . . Repair Stations . | . . . . . . . . Recycling Units . | . . . . . . . . Scanalyzers . | . . . . . . . . Garrison Access . | . . . . . . . . Data Cores Recovered . | . . . . . . . . Used . | . . . . . . . . Hacking Detections 1 | . 1 . . . . . . Full Trace Events . | . . . . . . . . Feedback Events . | . . . . . . . . Feedback Blocked . | . . . . . . . . Robot Schematics Acquired . | . . . . . . . . Robots Built . | . . . . . . . . Authchips . | . . . . . . . . Time . | . . . . . . . . Total Robot Build Rating . | . . . . . . . . Part Schematics Acquired . | . . . . . . . . Parts Built . | . . . . . . . . Authchips . | . . . . . . . . Time . | . . . . . . . . Total Part Build Rating . | . . . . . . . . Parts Repaired . | . . . . . . . . Time . | . . . . . . . . Parts Recycled . | . . . . . . . . Recycled Matter . | . . . . . . . . Retrieved Matter . | . . . . . . . . Retrieved Components . | . . . . . . . . Parts Scanalyzed . | . . . . . . . . Part Schematics Acquired . | . . . . . . . . Parts Damaged . | . . . . . . . . Bothacking | -11 -10 -10 -9 -9 -9 -8 -8 ------------ Run | Yrd Mat Min Mat Min Exi Min Mat Used RIF Installer . | . . . . . . . . Robots Hacked 7 | . 1 4 1 . . . 1 Non-combat 3 | . 1 2 . . . . . Combat 4 | . . 2 1 . . . 1 Robot Hacks Applied 9 | . 2 4 1 . . . 2 map_walls 2 | . . 2 . . . . . map_route 1 | . 1 . . . . . . mark_security 1 | . 1 . . . . . . find_shortcuts 4 | . . 2 1 . . . 1 find_garrison 1 | . . . . . . . 1 Relay Couplers Released . | . . . . . . . . Fabnet Peak Effective % . | . . . . . . . . Robots Rewired . | . . . . . . . . Allies Hacked . | . . . . . . . . Hacks Repelled . | . . . . . . . . Allies | -11 -10 -10 -9 -9 -9 -8 -8 -------- Run | Yrd Mat Min Mat Min Exi Min Mat Total Allies 2 | . . 2 . . . . . Largest Group 2 | . . 2 . . . . . Highest-Rated Group 43 | . . 43 . . . . . Highest-Rated Ally 31 | . . 31 . . . . . Total Orders . | . . . . . . . . Ally Attacks 12 | . . 12 . . . . . Total Damage 146 | . . 146 . . . . . Kills 3 | . . 3 . . . . . Allies Corrupted . | . . . . . . . . Allies Melted . | . . . . . . . . Intel | -11 -10 -10 -9 -9 -9 -8 -8 ------- Run | Yrd Mat Min Mat Min Exi Min Mat Robot Analysis Total 7 | 1 1 3 1 . . 1 . Derelict Logs Recovered 1 | . . 1 . . . . . Drone Launches . | . . . . . . . . Drone Recoveries . | . . . . . . . . Exploration | -11 -10 -10 -9 -9 -9 -8 -8 ------------- Run | Yrd Mat Min Mat Min Exi Min Mat Turns Passed 2991 | 41 133 472 991 109 384 565 296 Spaces Moved 1989 | 44 136 602 279 69 240 343 276 Core 97 | 13 . 42 11 . . 26 5 Treads 622 | . . . 123 69 240 190 . Legs . | . . . . . . . . Wheels 1055 | 31 130 352 145 . . 127 270 Hover 167 | . 6 161 . . . . . Flight 48 | . . 47 . . . . 1 Fastest Speed 37 | 50 56 37 50 160 160 50 37 Average Speed 102 | 85 98 68 114 160 160 122 79 Slowest Speed 160 | 100 100 80 160 160 160 160 80 Overloaded Moves . | . . . . . . . . Propulsion Burnouts . | . . . . . . . . Robots Hopped . | . . . . . . . . Cave-ins Triggered . | . . . . . . . . Exploration Rate (%) 40 | 4 33 77 27 19 60 78 28 Regions Visited 7 Branch Regions 4 Pre-discovered Areas 1 | . . 1 . . . . . Known Exits Taken 1 | . 1 . . . . . . Unknown Exits Taken 6 | 1 . 1 1 1 1 1 . Scrap Searched 2 | . . 1 . . . 1 . Spaces Dug . | . . . . . . . . Terrain Destroyed . | . . . . . . . . Melee . | . . . . . . . . Projectile . | . . . . . . . . AOE . | . . . . . . . . Terrain Rammed . | . . . . . . . . Walls Destroyed . | . . . . . . . . Machines Disabled . | . . . . . . . . Actions | -11 -10 -10 -9 -9 -9 -8 -8 --------- Run | Yrd Mat Min Mat Min Exi Min Mat Total 2867 | 47 135 683 938 68 240 435 321 Wait 706 | . . 10 651 . . 45 . Move 1982 | 43 135 601 278 68 239 342 276 Hop . | . . . . . . . . Pick Up 6 | 4 . . . . 1 1 . Fast Attach . | . . . . . . . . Attach . | . . . . . . . . Detach . | . . . . . . . . Swap . | . . . . . . . . Drop 1 | . . . . . . 1 . Fire 87 | . . 14 7 . . 29 37 Melee . | . . . . . . . . Ram 15 | . . 1 . . . 6 8 Kick . | . . . . . . . . Crush 7 | . . . . . . 7 . Escape Stasis . | . . . . . . . . Rewire 5 | . . 3 2 . . . . Trap . | . . . . . . . . Miscellaneous 58 | . . 54 . . . 4 . Route ------- -11/Scrapyard -10/Materials (discovered 2 exits: *Min x2) -10/Mines (discovered 2 exits: *Mat x2) -9/Materials -9/Mines -9/Exiles -8/Mines -8/Materials (discovered 1 exit: [*Sto]) History --------- Turn | Location | Event 7 | -11/Scrapyard | Discovered new exit (range 14) 42 | -11/Scrapyard | Entered Materials 153 | -10/Materials | Discovered new exit (range 7) 169 | -10/Materials | Discovered new exit (range 14) 175 | -10/Materials | Identified exit to Mines 175 | -10/Materials | Entered Mines 538 | -10/Mines | Assembled infested the area 560 | -10/Mines | Discovered new exit (range 7) 578 | -10/Mines | Core integrity fell below 50% 582 | -10/Mines | Core integrity fell below 20% 643 | -10/Mines | Discovered new exit (range 9) 647 | -10/Mines | Entered Materials 1601 | -9/Materials | Discovered new exit (range 13) 1638 | -9/Materials | Entered Mines 1652 | -9/Mines | Met a Derelict bent on vengeance 1736 | -9/Mines | Deemed a non-threat by the Exiles lab entrance 1738 | -9/Mines | Discovered new exit (range 5) 1747 | -9/Mines | Entered Exiles 1794 | -9/Exiles | Met 8R-AWN 1816 | -9/Exiles | Met EX-HEX 1863 | -9/Exiles | Met EX-BIN 1882 | -9/Exiles | Aligned with FarCom system 1883 | -9/Exiles | Given EX-Vault access code 1930 | -9/Exiles | Opened EX-Vault 1978 | -9/Exiles | Warned to stay clear of 0b10 Research branches 2024 | -9/Exiles | Met EX-DEC 2110 | -9/Exiles | Discovered new exit (range 14) 2131 | -9/Exiles | Entered Mines 2551 | -8/Mines | Core integrity fell below 50% 2579 | -8/Mines | Core integrity fell below 20% 2603 | -8/Mines | Lost 8 parts (1p2n3u2w) 2687 | -8/Mines | Discovered new exit (range 13) 2696 | -8/Mines | Entered Materials 2737 | -8/Materials | Discovered new exit (range 12) 2972 | -8/Materials | Core integrity fell below 50% 2988 | -8/Materials | Core integrity fell below 20% 2992 | -8/Materials | Destroyed by S-10 Pest with Light Assault Rifle Last Messages --------------- (Destroy). 02955_ G-47 Trooper destroyed. 02956_ Acquired 19 Protomatter. 02957_ R-06 Scavenger collects Lgt. Nuclear Core. 02958_ Slug penetrates Wall. 02961_ R-06 Scavenger collects Lgt. Nuclear Core. 02961_ Slug penetrates Wall. 02964_ Slug penetrates A-02 Transporter. 02970_ K-01 Serf collects debris. 02971_ Slug penetrates Wall. 02983_ Lgt. Assault Rifle destroyed. 02983_ Lost control of S-10 Pest. 02984_ Slammed into G-50 Soldier. 02987_ Destabilizing: Core damaged (-16). 02988_ K-01 Serf collects debris. 02989_ Slammed into G-50 Soldier. 02990_ Wall collapses. 02990_ Slammed into G-50 Soldier. 02991_ Penetrated by Slug. 02991_ Slammed into G-50 Soldier. Map ----- +----------------------------------------------------+ | ??????????????????#??????#????# # "" ""?????????? | | ??????????????????????????????# # ???????????? | | ?????????????????#?##?????????# ##+#????????????? | | ???????????????????????????#??# #????????????? | | ??????????????????????????????# ##?????????#?? | | ??????????????????????????????# #?#?????????#? | | ??????????????????????????????# #????????????? | | ??????????????????????????#???# #?????#??????? | | ??????????????????????????????# #????????????? | | ??????????????????????#???????# #?############ | | ????????????????????#??#??????# #?# | | ????????????????????#??????#### ### | | ????????????????????????#??# # | | ??????????????????????????## / """ | | ???????????????????????????# # """ == | | ???????????????????????????# ###### # """ == | | ??????????????? ??########## #????# # == | | ??????????????????# # a #????# ############ | | ??????????????????#* "" " # ######+#######????? | | ??????????????????# """ # #= #????? | | ??????????????????# """" # # " """"" #????? | | ??????????????????# ;= # """"""""" #????? | | ??????????????????# k/% + """ """ ?????? | | ??????????????????# [! hs#[ # ! ??????? | | ??????????????????# [! %m# #############?????? | | ??????????????????# ! @g# #???#?????????????? | | ?????????+????????########## #?????????????????? | | ???????????????????????????# #?????????????????? | | ???????????????????????????# w#????????#????????? | | ?????????????????????????#?# #?????????????????? | | ???????????????????????????# #?????????????????? | | ???????????????????????????? #??????????"??????? | | ???????????????????????????? #??????? ?????????? | | ???????????????????????????? #?????????????????? | | ???????????????????????????? ??????????????????? | | ?????????????????????????????????????????????????? | | ???????????????????Y?????????g???????????????????? | | ????????????????????????o????g???????????????????? | | ?????????????????????????????????????????????????? | | ?????????????????????????????????????????????????? | | ?????????????????????????????????????????????????? | | ?????????????????????????????????????????????????? | | ?????????????????????????????????????????????????? | | ?????????????????????????????????????????????????? | | ?????????????????????????????????????????????????? | | ?????????????????????????????????????????????????? | | ?????????????????????????????????????????????????? | | ?????????????????????????????????????????????????? | | ?????????????????????????????????????????????????? | | ?????????????????????????????????????????????????? | +----------------------------------------------------+ Best States ------------- Heat Dissipation 36 Energy Generation 17 Energy Capacity 215 Matter Stores 125 Matter Capacity 125 Sight Range 18 Robot Scan Range 14 Terrain Scan Range 16 Terrain Scan Density 85 Armor Coverage 150 Resistance: EX 50 Resistance: I 25 Evasion (%) 62 Recoil Reduction 2 Item Schematics ----------------- None Robot Schematics ------------------ None Fabricated ------------ Nothing Alien Tech Used ----------------- None Achievements -------------- Armchair Analyst Close Call Challenges ------------ None Polymind | -11 -10 -10 -9 -9 -9 -8 -8 ---------- Run | Yrd Mat Min Mat Min Exi Min Mat Hosts 11 | 1 1 5 2 . . 1 1 Combat Hostiles 4 | . . 2 1 . . . 1 Allies . | . . . . . . . . Unique Host Classes 7 | 1 1 3 1 . . 1 . Average Host Suspicion 50 | 5 27 70 41 13 . 84 87 Unsuspicious Activity 845 | 2 . 143 678 . . 22 . Returns to Shadow 3 | . . 1 1 . . 1 . Fuzzy Dispatches . | . . . . . . . . Protomatter Created 131 | . . 87 . . . 3 41 Used 83 | 5 12 27 28 . . 5 6 Decayed . | . . . . . . . . Highest Spend 23 | 5 12 6 23 . . 5 6 Top 5 Hosts by Kills: Y-45 Defender (-9/Materials: 13) S-10 Pest (-8/Materials: 3) S-10 Pest (-10/Mines: 2) S-10 Pest (-10/Mines: 2) Game ------ Seed ElectronThermicChainsword Manual? 0 Play Time 00:21:13 Cumulative 17.2 hours Start 2024.03.08 @ 16:29:34 End 2024.03.08 @ 16:52:10 Sessions 1 Manual Loads 0 Difficulty Rogue Special Mode Winter2022/Polymind Game No. 13 Rogue 7 Adventurer 6 Explorer 0 Win Type - Total 0 Types 0/0/0/0/0/0/0/0/0 Lore% 11 Gallery% 26 Achievement% 23 Wizard Run 0 Options --------- Layout 1 ASCII 0 Keyboard 0 Movement Mouse Keybinds 0 Fullscreen 2 Font 18/SmallcapsGlow Map View 51x43 Zoom Use 0% Tactical HUD 1 Map Filters NONE Filters NONE Steam 0 RUN: 2d44678c-2d3e-43e1-aa07-bd84d49af543